bitfinex/quotes_BTCUSD_20241009
["timestamp","ask_amount","ask_price","bid_price","bid_amount"]
[1728496819742,0.00264,61804.0,61801.0,0.23623764]
[1728496820407,0.00264,61804.0,61803.0,0.002]
[1728496820669,0.00264,61804.0,61803.0,0.37103957]
[1728496820892,0.00264,61804.0,61803.0,0.18383764]
[1728496821112,0.00264,61804.0,61803.0,0.37103957]
[1728496821333,0.00164,61804.0,61803.0,0.37103957]
[1728496821825,0.00264,61804.0,61803.0,0.37103957]
[1728496822278,0.00164,61804.0,61803.0,0.37103957]
[1728496822743,0.00164,61804.0,61803.0,0.37303957]
[1728496822977,0.02699542,61804.0,61803.0,0.37303957]
[1728496823197,0.02699542,61804.0,61803.0,0.37103957]
[1728496824304,0.02699542,61804.0,61803.0,0.18383764]
[1728496824761,0.02699542,61804.0,61803.0,0.18883764]
[1728496825197,0.02699542,61804.0,61803.0,0.18383764]
[1728496825429,0.02699542,61804.0,61803.0,0.18683764]
[1728496825701,0.02699542,61804.0,61803.0,0.18983764]
[1728496826142,0.02699542,61804.0,61803.0,0.18683764]
[1728496826376,0.02699542,61804.0,61803.0,0.19083764]
[1728496826866,0.02699542,61804.0,61803.0,0.27353764]
[1728496827359,0.02699542,61804.0,61803.0,0.27053764]
[1728496827831,0.02699542,61804.0,61803.0,0.26653764]
[1728496828067,0.02699542,61804.0,61803.0,0.19283764]
[1728496828307,0.02699542,61804.0,61803.0,0.18883764]
[1728496828555,0.02699542,61804.0,61803.0,0.18783764]
[1728496829001,0.02699542,61804.0,61803.0,0.19283764]
[1728496829470,0.02699542,61804.0,61803.0,0.18783764]
[1728496829712,0.00164,61804.0,61803.0,0.19283764]
[1728496830167,0.00164,61804.0,61803.0,0.18883764]
[1728496830600,0.00164,61804.0,61803.0,0.19183764]
[1728496831072,0.00164,61804.0,61803.0,0.18683764]
[1728496831293,0.00164,61804.0,61803.0,0.19183764]
[1728496831752,0.00164,61804.0,61803.0,0.18383764]
[1728496832187,0.00164,61804.0,61803.0,0.19383764]
[1728496832622,0.00164,61804.0,61803.0,0.18883764]
[1728496832857,0.0269955,61804.0,61803.0,0.19283764]
[1728496833590,0.0269955,61804.0,61803.0,0.18783764]
[1728496833802,0.0269955,61804.0,61803.0,0.19083764]
[1728496834020,0.0269955,61804.0,61803.0,0.18783764]
[1728496834238,0.0269955,61804.0,61803.0,0.18383764]
[1728496834467,0.0269955,61804.0,61803.0,0.18983764]
[1728496834682,0.0269955,61804.0,61803.0,0.18783764]
[1728496834951,0.0269955,61804.0,61803.0,0.18683764]
[1728496835457,0.0269955,61804.0,61803.0,0.19083764]
[1728496835707,0.0269955,61804.0,61803.0,0.34864164]
[1728496836195,0.0269955,61804.0,61803.0,0.35164164]
[1728496836733,0.0269955,61804.0,61803.0,0.53984164]
[1728496836982,0.0269955,61804.0,61803.0,0.70216265]
[1728496837260,0.00164,61809.0,61808.0,0.005]
[1728496837481,0.001638,61811.0,61808.0,0.005]
[1728496837482,0.001638,61811.0,61810.0,0.65288793]
[1728496837712,0.001638,61811.0,61810.0,0.88634026]
[1728496837925,0.001638,61811.0,61810.0,0.91054715]
[1728496838365,0.001638,61811.0,61810.0,0.81372557]
[1728496838802,0.001638,61811.0,61810.0,0.9105418]
[1728496839024,0.001638,61811.0,61810.0,0.81372557]
[1728496839252,0.001638,61811.0,61810.0,0.86948085]
[1728496839729,0.001638,61811.0,61810.0,1.06344578]
[1728496839955,0.00164,61828.0,61813.0,0.372178]
[1728496840183,0.00164,61828.0,61813.0,0.62979229]
[1728496840414,0.00164,61828.0,61813.0,0.63175236]
[1728496840640,0.00164,61828.0,61813.0,0.62831564]
[1728496841127,0.00164,61828.0,61813.0,0.72505979]
[1728496841347,0.00164,61828.0,61813.0,0.62631564]
[1728496841348,0.24236353,61823.0,61813.0,0.62631564]
[1728496841565,0.24236353,61823.0,61813.0,0.70084916]
[1728496841778,0.24236353,61823.0,61813.0,0.62631564]
[1728496842264,0.24236353,61823.0,61813.0,0.71085077]
[1728496842503,0.24236353,61823.0,61813.0,0.65031564]
[1728496842992,0.24236353,61823.0,61813.0,0.33461564]
[1728496843474,0.40411553,61823.0,61813.0,0.32261564]
[1728496843742,0.24236353,61823.0,61813.0,0.32261564]
[1728496843987,0.24236353,61823.0,61813.0,0.33661564]
[1728496843988,0.2677132,61823.0,61813.0,0.33661564]
[1728496844433,0.2677132,61823.0,61813.0,0.35961564]
[1728496844655,0.2677132,61823.0,61813.0,0.33661564]
[1728496844656,0.01672815,61814.0,61813.0,0.33661564]
[1728496845111,0.01672815,61814.0,61813.0,0.34861564]
[1728496845354,0.01672815,61814.0,61813.0,0.17283764]
[1728496845579,0.01672815,61814.0,61813.0,0.18483764]
[1728496845580,0.001642,61814.0,61813.0,0.18483764]
[1728496845808,0.001642,61814.0,61813.0,0.34661564]
[1728496846060,0.001642,61814.0,61813.0,0.18483764]
[1728496846296,0.001642,61814.0,61813.0,0.34661564]
[1728496846513,0.001642,61814.0,61813.0,0.32261564]
[1728496846742,0.001642,61814.0,61813.0,0.32661564]
[1728496847932,0.001642,61814.0,61813.0,0.33161564]
[1728496851378,0.001642,61814.0,61813.0,0.16983764]
[1728496851877,0.163417,61814.0,61813.0,0.16983764]
[1728496852648,0.255417,61814.0,61813.0,0.009]
[1728496852909,0.52560977,61814.0,61813.0,0.009]
[1728496853174,0.57589393,61814.0,61813.0,0.009]
[1728496853388,0.57589393,61814.0,61813.0,0.004]
[1728496853627,0.161807,61802.0,61801.0,0.24236353]
[1728496854318,0.161813,61800.0,61796.0,0.16182]
[1728496854532,0.323625,61800.0,61794.0,0.40500753]
[1728496854748,0.161818,61798.0,61794.0,0.40500753]
[1728496855234,0.161825,61795.0,61794.0,0.000819]
[1728496855694,0.08344219,61798.0,61794.0,0.000819]
[1728496855695,0.40708019,61798.0,61794.0,0.000819]
[1728496856171,0.18717844,61798.0,61795.0,0.161824]
[1728496856419,0.02536044,61798.0,61796.0,0.16083764]
[1728496856656,0.02536044,61798.0,61797.0,0.16182]
[1728496857877,0.02536044,61798.0,61797.0,0.32265764]
[1728496858638,0.02536044,61798.0,61797.0,0.34565764]
[1728496859125,0.02536044,61798.0,61797.0,0.34765764]
[1728496859362,0.02536044,61798.0,61797.0,0.34865764]
[1728496859595,0.02536044,61798.0,61797.0,0.34565764]
[1728496859839,0.24236353,61805.0,61804.0,0.161801]
[1728496860076,0.082342,61814.0,61805.0,0.023]
[1728496860341,0.001642,61814.0,61812.0,0.16178]
[1728496860871,0.16178,61813.0,61810.0,0.161784]
[1728496861378,0.001642,61814.0,61806.0,0.48442864]
[1728496861379,0.001642,61814.0,61806.0,0.16083764]
[1728496861859,0.001642,61814.0,61808.0,0.56594553]
[1728496862108,0.161778,61813.0,61810.0,0.161785]
[1728496862856,0.163418,61814.0,61811.0,0.161782]
[1728496863349,0.161786,61810.0,61809.0,0.16083764]
[1728496863625,0.0806,61807.0,61794.0,0.324471]
[1728496863859,0.34901393,61800.0,61794.0,0.000819]
[1728496864113,0.34901393,61800.0,61795.0,0.161824]
[1728496864339,0.323609,61803.0,61795.0,0.32365]
[1728496864578,0.161809,61801.0,61798.0,0.161817]
[1728496865013,0.485434,61801.0,61797.0,0.161819]
[1728496865231,0.18720193,61805.0,61795.0,0.16083764]
[1728496865444,0.161806,61803.0,61796.0,0.161821]
[1728496865670,0.161813,61800.0,61796.0,0.161821]
[1728496865909,0.161813,61800.0,61798.0,0.006]
[1728496866155,0.02535974,61806.0,61799.0,0.40320117]
[1728496866381,0.02535974,61806.0,61805.0,0.184799]
[1728496866606,0.02535974,61806.0,61805.0,0.34563664]
[1728496868840,0.02535974,61806.0,61805.0,0.35063664]
[1728496869379,0.02535974,61806.0,61805.0,0.35463664]
[1728496869593,0.02535974,61806.0,61805.0,0.35063664]
[1728496869840,0.001638,61813.0,61812.0,0.16178]
[1728496870074,0.001638,61813.0,61812.0,0.32261764]
[1728496871309,0.001638,61813.0,61812.0,0.16083764]
[1728496871542,0.001638,61813.0,61812.0,0.32261764]
[1728496871775,0.001638,61813.0,61812.0,0.32361764]
[1728496873014,0.02699279,61813.0,61812.0,0.32361764]
[1728496873265,0.02699279,61813.0,61812.0,0.58898117]
[1728496873503,0.02699279,61813.0,61812.0,0.34661764]
[1728496873768,0.02699279,61813.0,61812.0,0.44661764]
[1728496874539,0.001638,61813.0,61812.0,0.44661764]
[1728496875992,0.00164,61828.0,61821.0,0.005]
[1728496876213,0.00164,61828.0,61827.0,0.37194293]
[1728496876430,0.00164,61828.0,61827.0,0.45324293]
[1728496877812,0.00164,61828.0,61827.0,0.266041]
[1728496878036,0.00164,61828.0,61827.0,0.184741]
[1728496878524,0.00164,61828.0,61827.0,0.187741]
[1728496878743,0.00164,61828.0,61827.0,0.184741]
[1728496879183,0.00164,61828.0,61827.0,0.187741]
[1728496879405,0.00164,61828.0,61827.0,0.191741]
[1728496880727,0.00164,61828.0,61827.0,0.19496631]
[1728496882148,0.00164,61828.0,61827.0,0.191741]
[1728496883838,0.00164,61828.0,61827.0,0.168741]
[1728496885050,0.00164,61828.0,61827.0,0.007]
[1728496885051,0.163379,61828.0,61827.0,0.007]
[1728496886210,0.163379,61828.0,61827.0,0.003]
[1728496886437,0.161743,61827.0,61823.0,0.161751]
[1728496886889,0.18720193,61827.0,61817.0,0.161766]
[1728496887114,0.18720193,61827.0,61812.0,0.000819]
[1728496887115,0.161758,61821.0,61820.0,0.24236353]
[1728496887378,0.323502,61824.0,61818.0,0.16083764]
[1728496887591,0.323502,61824.0,61819.0,0.161762]
[1728496887807,0.18710286,61823.0,61819.0,0.161762]
[1728496888019,0.18710286,61823.0,61819.0,0.161761]
[1728496888235,0.02534986,61823.0,61818.0,0.16083764]
[1728496888673,0.161755,61822.0,61818.0,0.64612564]
[1728496888890,0.161755,61822.0,61819.0,0.001]
[1728496889338,0.161755,61822.0,61818.0,0.32260064]
[1728496889552,0.161755,61822.0,61818.0,0.32560064]
[1728496889763,0.161758,61821.0,61818.0,0.32760064]
[1728496890060,0.14538654,61883.0,61825.0,0.161746]
[1728496890061,0.163379,61828.0,61825.0,0.161746]
[1728496890300,0.24236353,61827.0,61818.0,0.16383764]
[1728496890516,0.161762,61819.0,61818.0,0.003]
[1728496890734,0.161762,61819.0,61812.0,0.324377]
[1728496890735,0.161775,61814.0,61813.0,0.24236353]
[1728496890950,0.323534,61818.0,61813.0,0.24236353]
[1728496891168,0.0808,61819.0,61812.0,0.000819]
[1728496891690,0.16177,61816.0,61812.0,0.162597]
[1728496891924,0.161771,61816.0,61812.0,0.162598]
[1728496892169,0.323533,61818.0,61812.0,0.000819]
[1728496892394,0.161765,61818.0,61814.0,0.161773]
[1728496892622,0.161752,61823.0,61820.0,0.161758]
[1728496892852,0.02535228,61826.0,61821.0,0.16083764]
[1728496893074,0.16175,61824.0,61821.0,0.16083764]
[1728496893294,0.161752,61823.0,61821.0,0.16083764]
[1728496897606,0.323495,61825.0,61821.0,0.16083764]
[1728496897848,0.161754,61822.0,61821.0,0.16083764]
[1728496898531,0.161752,61823.0,61821.0,0.16083764]
[1728496899759,0.161754,61822.0,61821.0,0.16083764]
[1728496901414,0.161754,61822.0,61821.0,0.16183764]
[1728496905157,0.163392,61822.0,61821.0,0.16183764]
[1728496905382,0.001638,61822.0,61821.0,0.16183764]
[1728496906279,0.001638,61822.0,61821.0,0.32359464]
[1728496906514,0.001638,61822.0,61821.0,0.34659464]
[1728496907198,0.001638,61822.0,61821.0,0.34559464]
[1728496907633,0.001638,61822.0,61821.0,0.35259464]
[1728496908368,0.001638,61822.0,61821.0,0.34559464]
[1728496908606,0.001638,61822.0,61821.0,0.34859464]
[1728496909562,0.001638,61822.0,61821.0,0.35259464]
[1728496914271,0.02698556,61822.0,61821.0,0.35259464]
[1728496916283,0.02698556,61822.0,61821.0,0.34859464]
[1728496916532,0.02698556,61822.0,61821.0,0.34959464]
[1728496917055,0.02698556,61822.0,61821.0,0.34859464]
[1728496917304,0.02698556,61822.0,61821.0,0.35059464]
[1728496917550,0.02698556,61822.0,61821.0,0.35459464]
[1728496919884,0.001638,61822.0,61821.0,0.35459464]
[1728496921801,0.001638,61822.0,61821.0,0.16983764]
[1728496922009,0.163392,61822.0,61821.0,0.16983764]
[1728496922657,0.163392,61822.0,61821.0,0.16483764]
[1728496922875,0.18874166,61822.0,61821.0,0.16483764]
[1728496923090,0.02698766,61822.0,61821.0,0.32759464]
[1728496923307,0.18874166,61822.0,61821.0,0.16583764]
[1728496923743,0.18874166,61822.0,61821.0,0.16183764]
[1728496924492,0.18874166,61822.0,61821.0,0.001]
[1728496925372,0.02698766,61822.0,61821.0,0.32359464]
[1728496925600,0.02698766,61822.0,61821.0,0.34559464]
[1728496927245,0.02698766,61822.0,61821.0,0.34859464]
[1728496927467,0.02698766,61822.0,61821.0,0.40106847]
[1728496928125,0.02698766,61822.0,61821.0,0.35259464]
[1728496928336,0.02698766,61822.0,61821.0,0.40106847]
[1728496929662,0.001638,61822.0,61821.0,0.40106847]
[1728496930805,0.001638,61822.0,61821.0,0.35259464]
[1728496931467,0.001638,61822.0,61821.0,0.42530539]
[1728496931693,0.001638,61822.0,61821.0,0.35259464]
[1728496933705,0.001638,61822.0,61821.0,0.40108221]
[1728496934371,0.02698549,61822.0,61821.0,0.40108221]
[1728496936118,0.02698549,61822.0,61821.0,0.4010793]
[1728496936360,0.02698549,61822.0,61821.0,0.35259464]
[1728496937495,0.02698549,61822.0,61821.0,0.42532163]
[1728496937759,0.02698549,61822.0,61821.0,0.41832163]
[1728496937973,0.02698549,61822.0,61821.0,0.42432163]
[1728496938422,0.02698549,61822.0,61821.0,0.35159464]
[1728496938654,0.02698549,61822.0,61821.0,0.45159464]
[1728496938894,0.02698549,61822.0,61821.0,0.45859464]
[1728496939981,0.001638,61822.0,61821.0,0.45859464]
[1728496940986,0.001638,61822.0,61821.0,0.53131399]
[1728496941789,0.001638,61822.0,61821.0,0.45859464]
[1728496943652,0.001638,61822.0,61821.0,0.55556396]
[1728496946287,0.001638,61822.0,61821.0,0.45859464]
[1728496946538,0.001638,61822.0,61821.0,0.55556396]
[1728496946964,0.001638,61822.0,61821.0,0.45859464]
[1728496947713,0.001638,61822.0,61821.0,0.55556396]
[1728496951283,0.001638,61822.0,61821.0,0.45859464]
[1728496953932,0.001638,61822.0,61821.0,0.55556472]
[1728496954885,0.001638,61822.0,61821.0,0.45859464]
[1728496955344,0.001638,61822.0,61821.0,0.55556197]
[1728496956051,0.001638,61822.0,61821.0,0.55556244]
[1728496956291,0.001638,61822.0,61821.0,0.45859464]
[1728496958747,0.02698534,61822.0,61821.0,0.35559464]
[1728496959241,0.02698534,61822.0,61821.0,0.34859464]
[1728496959425,0.02698534,61822.0,61821.0,0.35559464]
[1728496959680,0.001638,61822.0,61821.0,0.35559464]
[1728496960137,0.001638,61822.0,61821.0,0.34859464]
[1728496960361,0.001638,61822.0,61821.0,0.35259464]
[1728496961812,0.001638,61822.0,61821.0,0.5835813]
[1728496962041,0.001638,61822.0,61821.0,0.53509464]
[1728496962262,0.001638,61822.0,61821.0,0.5835813]
[1728496963382,0.001638,61822.0,61821.0,0.5835835]
[1728496963607,0.001638,61822.0,61821.0,0.60782464]
[1728496964082,0.001638,61822.0,61821.0,0.50108428]
[1728496964320,0.02698453,61822.0,61821.0,0.52532464]
[1728496966046,0.02698453,61822.0,61821.0,0.50108843]
[1728496966280,0.02698453,61822.0,61821.0,0.45259464]
[1728496966933,0.02698453,61822.0,61821.0,0.50109113]
[1728496967129,0.02698453,61822.0,61821.0,0.45259464]
[1728496967612,0.02698453,61822.0,61821.0,0.50109113]
[1728496967860,0.02698453,61822.0,61821.0,0.45259464]
[1728496968588,0.02698453,61822.0,61821.0,0.50109113]
[1728496969037,0.02698453,61822.0,61821.0,0.32959464]
[1728496969731,0.02698453,61822.0,61821.0,0.32259464]
[1728496969970,0.101438,61822.0,61821.0,0.32259464]
[1728496970193,0.101438,61822.0,61821.0,0.32659464]
[1728496971129,0.101438,61822.0,61821.0,0.32959464]
[1728496971263,0.101438,61822.0,61821.0,0.32659464]
[1728496971507,0.101438,61822.0,61821.0,0.32759464]
[1728496971912,0.101438,61822.0,61821.0,0.32359464]
[1728496971913,0.001638,61822.0,61821.0,0.32359464]
[1728496972356,0.001638,61822.0,61821.0,0.32559464]
[1728496973001,0.02698645,61822.0,61821.0,0.32559464]
[1728496976272,0.02698645,61822.0,61821.0,0.34859464]
[1728496978833,0.02698645,61822.0,61821.0,0.39712724]
[1728496979457,0.02698645,61822.0,61821.0,0.34859464]
[1728496979878,0.001638,61822.0,61821.0,0.34859464]
[1728496983065,0.02698614,61822.0,61821.0,0.34859464]
[1728496983774,0.02698614,61822.0,61821.0,0.72774853]
[1728496984012,0.00164,61828.0,61821.0,0.72774853]
[1728496984013,0.00164,61828.0,61827.0,0.261741]
[1728496984224,0.00164,61828.0,61827.0,0.75874507]
[1728496984439,0.00164,61828.0,61827.0,0.75551097]
[1728496984884,0.00164,61828.0,61827.0,0.75751097]
[1728496985519,0.00164,61828.0,61827.0,0.77151097]
[1728496985945,0.00164,61828.0,61827.0,0.78551097]
[1728496986609,0.00164,61828.0,61827.0,0.84769975]
[1728496991807,0.00164,61828.0,61827.0,0.84969975]
[1728496992016,0.00164,61828.0,61827.0,0.85509239]
[1728496996228,0.00164,61828.0,61827.0,0.85709239]
[1728497005446,0.00164,61828.0,61827.0,0.75609239]
[1728497005937,0.00164,61828.0,61827.0,0.75809239]
[1728497006629,0.00164,61828.0,61827.0,0.69382158]
[1728497006842,0.00164,61828.0,61827.0,0.69182158]
[1728497007052,0.00164,61828.0,61827.0,0.69382158]
[1728497008129,0.00164,61828.0,61827.0,0.69182158]
[1728497008348,0.00164,61828.0,61827.0,0.69382158]
[1728497009842,0.00164,61828.0,61827.0,0.69182158]
[1728497011167,0.00164,61828.0,61827.0,0.69382158]
[1728497013830,0.00164,61840.0,61839.0,0.16171]
[1728497014099,0.00164,61840.0,61839.0,0.44878113]
[1728497014311,0.00164,61840.0,61839.0,0.44554764]
[1728497014753,0.00164,61840.0,61839.0,0.45254764]
[1728497014977,0.00164,61840.0,61839.0,0.5492536]
[1728497015197,0.00164,61840.0,61839.0,0.5532536]
[1728497015415,0.00164,61840.0,61839.0,0.45454764]
[1728497015631,0.00164,61840.0,61839.0,0.57543009]
[1728497015854,0.00164,61840.0,61839.0,0.55122466]
[1728497016042,0.00164,61840.0,61839.0,0.57143009]
[1728497016291,0.00164,61840.0,61839.0,0.57643009]
[1728497016554,0.00164,61840.0,61839.0,0.47154764]
[1728497016778,0.00164,61840.0,61839.0,0.45254764]
[1728497016995,0.00164,61840.0,61839.0,0.46654764]
[1728497017643,0.00164,61840.0,61839.0,0.45254764]
[1728497017894,0.00164,61840.0,61839.0,0.47473788]
[1728497018131,0.00164,61840.0,61839.0,0.48873788]
[1728497018554,0.00164,61840.0,61839.0,0.47473788]
[1728497018993,0.00164,61840.0,61839.0,0.56523788]
[1728497019212,0.00164,61856.0,61853.0,0.4074233]
[1728497019440,0.00164,61856.0,61853.0,0.6166482]
[1728497019699,0.00164,61856.0,61854.0,0.123]
[1728497019932,0.00164,61856.0,61854.0,0.49389527]
[1728497020384,0.00164,61856.0,61854.0,0.44550864]
[1728497021308,0.00164,61856.0,61854.0,0.44950864]
[1728497021811,0.00164,61856.0,61854.0,0.57225894]
[1728497022489,0.00164,61856.0,61854.0,0.45250864]
[1728497022907,0.179438,61855.0,61854.0,0.45250864]
[1728497024230,0.20477231,61855.0,61854.0,0.45250864]
[1728497026709,0.20477231,61855.0,61854.0,0.19083764]
[1728497026923,0.36644031,61855.0,61854.0,0.19083764]
[1728497027150,0.21228901,61855.0,61854.0,0.19083764]
[1728497027585,0.21228901,61855.0,61854.0,0.18783764]
[1728497027799,0.37395701,61855.0,61854.0,0.027]
[1728497028019,0.37395701,61855.0,61854.0,0.03]
[1728497029871,0.3486227,61855.0,61854.0,0.03]
[1728497031260,0.1869547,61855.0,61854.0,0.027]
[1728497031485,0.1869547,61855.0,61854.0,0.34950864]
[1728497031717,0.1889547,61855.0,61854.0,0.34950864]
[1728497032165,0.181438,61855.0,61854.0,0.34950864]
[1728497032419,0.18888472,61855.0,61854.0,0.34950864]
[1728497033493,0.21422211,61855.0,61854.0,0.34950864]
[1728497033706,0.21222211,61855.0,61854.0,0.34950864]
[1728497034137,0.21222211,61855.0,61854.0,0.35050864]
[1728497036485,0.20477539,61855.0,61854.0,0.35050864]
[1728497036702,0.21218825,61855.0,61854.0,0.35050864]
[1728497037361,0.20477539,61855.0,61854.0,0.35050864]
[1728497037576,0.21188523,61855.0,61854.0,0.35050864]
[1728497038939,0.20477539,61855.0,61854.0,0.35050864]
[1728497039136,0.21188523,61855.0,61854.0,0.35050864]
[1728497039980,0.18654784,61855.0,61854.0,0.32750864]
[1728497040944,0.18654784,61855.0,61854.0,0.35050864]
[1728497042653,0.18654784,61855.0,61854.0,0.34650864]
[1728497042865,0.21188419,61855.0,61854.0,0.34650864]
[1728497043248,0.21188419,61855.0,61854.0,0.35050864]
[1728497044122,0.21188419,61855.0,61854.0,0.34650864]
[1728497044481,0.21188419,61855.0,61854.0,0.34850864]
[1728497044903,0.20477435,61855.0,61854.0,0.34850864]
[1728497045044,0.21191029,61855.0,61854.0,0.34850864]
[1728497045465,0.03411029,61855.0,61854.0,0.77784214]
[1728497045672,0.03411029,61855.0,61854.0,0.53547861]
[1728497045673,0.02697435,61855.0,61854.0,0.53547861]
[1728497046984,0.10987435,61855.0,61854.0,0.34850864]
[1728497047213,0.11705269,61855.0,61854.0,0.34850864]
[1728497047896,0.11705269,61855.0,61854.0,0.34550864]
[1728497048135,0.03415269,61855.0,61854.0,0.34650864]
[1728497048366,0.03415269,61855.0,61854.0,0.34550864]
[1728497048573,0.03415269,61855.0,61854.0,0.34650864]
[1728497049415,0.03415269,61855.0,61854.0,0.34850864]
[1728497049864,0.00881634,61855.0,61854.0,0.34850864]
[1728497050085,0.00881634,61855.0,61854.0,0.34650864]
[1728497050299,0.00881634,61855.0,61854.0,0.34850864]
[1728497050522,0.001638,61855.0,61854.0,0.34850864]
[1728497052922,0.02697306,61855.0,61854.0,0.34850864]
[1728497055324,0.02697306,61855.0,61854.0,0.42116974]
[1728497055891,0.02697306,61855.0,61854.0,0.34850864]
[1728497059515,0.02697306,61855.0,61854.0,0.34550864]
[1728497059785,0.001638,61855.0,61854.0,0.34950864]
[1728497060235,0.001638,61855.0,61854.0,0.35750864]
[1728497060639,0.001638,61855.0,61854.0,0.34950864]
[1728497061082,0.001638,61855.0,61854.0,0.35450864]
[1728497061939,0.001638,61855.0,61854.0,0.59687217]
[1728497062122,0.001638,61855.0,61854.0,0.35450864]
[1728497062725,0.001638,61855.0,61854.0,0.59687217]
[1728497062989,0.02697287,61855.0,61854.0,0.47720761]
[1728497063744,0.02697287,61855.0,61854.0,0.35450864]
[1728497067314,0.02697287,61855.0,61854.0,0.40299065]
[1728497067843,0.02697287,61855.0,61854.0,0.42720681]
[1728497068081,0.02697287,61855.0,61854.0,0.35450864]
[1728497069708,0.02697287,61855.0,61854.0,0.45450864]
[1728497069936,0.001638,61855.0,61854.0,0.45450864]
[1728497070176,0.001638,61855.0,61854.0,0.55149072]
[1728497071693,0.001638,61855.0,61854.0,0.45450864]
[1728497073867,0.001638,61855.0,61854.0,0.45450864]
[1728497074350,0.02697152,61855.0,61854.0,0.45450864]
[1728497076550,0.02697152,61855.0,61854.0,0.55149072]
[1728497079362,0.02697152,61855.0,61854.0,0.55148448]
[1728497079832,0.001638,61855.0,61854.0,0.55148448]
[1728497083224,0.02697145,61855.0,61854.0,0.55148448]
[1728497083943,0.02697145,61855.0,61854.0,0.43150864]
[1728497084184,0.02697145,61855.0,61854.0,0.33150864]
[1728497084421,0.001638,61855.0,61854.0,0.33150864]
[1728497085399,0.001638,61855.0,61854.0,0.19283764]
[1728497085641,0.001638,61855.0,61854.0,0.35450864]
[1728497087060,0.02697317,61855.0,61854.0,0.35450864]
[1728497089976,0.001638,61855.0,61854.0,0.35450864]
[1728497092976,0.02697307,61855.0,61854.0,0.59687217]
[1728497093219,0.02697307,61855.0,61854.0,0.57723583]
[1728497093453,0.02697307,61855.0,61854.0,0.64998823]
[1728497093702,0.02697307,61855.0,61854.0,0.57723583]
[1728497094881,0.02697307,61855.0,61854.0,0.67422958]
[1728497095120,0.02697307,61855.0,61854.0,0.57723583]
[1728497096641,0.02697307,61855.0,61854.0,0.57323583]
[1728497096860,0.02697307,61855.0,61854.0,0.58123583]
[1728497097292,0.02697307,61855.0,61854.0,0.57623583]
[1728497097511,0.02697307,61855.0,61854.0,0.68222895]
[1728497097719,0.02697307,61855.0,61854.0,0.58523583]
[1728497098010,0.02697307,61855.0,61854.0,0.68222834]
[1728497098228,0.02697307,61855.0,61854.0,0.55950115]
[1728497099296,0.02697307,61855.0,61854.0,0.56687809]
[1728497099749,0.001638,61855.0,61854.0,0.56687809]
[1728497102782,0.001638,61855.0,61854.0,0.46988558]
[1728497103025,0.02697149,61855.0,61854.0,0.51838336]
[1728497103263,0.02697149,61855.0,61854.0,0.46250864]
[1728497103497,0.02697149,61855.0,61854.0,0.33950864]
[1728497103733,0.02697149,61855.0,61854.0,0.178671]
[1728497103734,0.20349576,61855.0,61854.0,0.178671]
[1728497103978,0.36516376,61855.0,61854.0,0.017]
[1728497104205,0.41611615,61855.0,61854.0,0.009]
[1728497104435,0.002,61847.0,61846.0,0.04849778]
[1728497104665,0.0837,61847.0,61846.0,0.32252864]
[1728497104890,0.08502427,61847.0,61846.0,0.32252864]
[1728497105359,0.11036382,61847.0,61846.0,0.32252864]
[1728497105788,0.10703955,61847.0,61846.0,0.32252864]
[1728497106024,0.02533955,61847.0,61846.0,0.32252864]
[1728497107155,0.02533955,61847.0,61846.0,0.32752864]
[1728497107396,0.02866768,61847.0,61846.0,0.32752864]
[1728497108954,0.00332813,61847.0,61846.0,0.32752864]
[1728497109965,0.00332813,61847.0,61846.0,0.16583764]
[1728497110198,0.00332813,61847.0,61846.0,0.32752864]
[1728497110199,0.00532813,61847.0,61846.0,0.32752864]
[1728497110873,0.00332813,61847.0,61846.0,0.32752864]
[1728497111099,0.00532813,61847.0,61846.0,0.32752864]
[1728497112053,0.02866731,61847.0,61846.0,0.32752864]
[1728497114863,0.03066731,61847.0,61846.0,0.16583764]
[1728497115085,0.03066731,61847.0,61846.0,0.32752864]
[1728497116003,0.36775631,61847.0,61846.0,0.005]
[1728497116445,0.36575631,61847.0,61846.0,0.005]
[1728497116868,0.20406731,61847.0,61846.0,0.005]
[1728497117756,0.36775631,61847.0,61846.0,0.005]
[1728497118495,0.20606731,61847.0,61846.0,0.005]
[1728497118708,0.36775631,61847.0,61846.0,0.005]
[1728497118926,0.36575631,61847.0,61846.0,0.005]
[1728497119138,0.32422137,61847.0,61846.0,0.005]
[1728497119356,0.48591037,61847.0,61846.0,0.005]
[1728497119586,0.32422137,61847.0,61846.0,0.005]
[1728497119813,0.29888219,61847.0,61846.0,0.005]
[1728497120479,0.30088219,61847.0,61846.0,0.005]
[1728497121417,0.30088219,61847.0,61846.0,0.166691]
[1728497121418,0.1754,61847.0,61846.0,0.166691]
[1728497121652,0.323368,61849.0,61846.0,0.005]
[1728497121869,0.161685,61849.0,61846.0,0.005]
[1728497122106,0.161687,61848.0,61846.0,0.005]
[1728497122318,0.161688,61848.0,61846.0,0.005]
[1728497122536,0.161688,61848.0,61846.0,0.003]
[1728497122748,0.48838397,61849.0,61845.0,0.161693]
[1728497122959,0.0253404,61848.0,61845.0,0.161693]
[1728497123176,0.0253404,61848.0,61846.0,0.001]
[1728497123408,0.0273404,61848.0,61846.0,0.002]
[1728497123622,0.163697,61844.0,61841.0,0.184704]
[1728497123834,0.163697,61844.0,61842.0,0.16083764]
[1728497124061,0.00332997,61843.0,61840.0,0.000819]
[1728497124293,0.35076127,61841.0,61840.0,0.000819]
[1728497124528,0.64301099,61841.0,61840.0,0.000819]
[1728497124808,0.64634096,61841.0,61840.0,0.000819]
[1728497125718,0.65134096,61841.0,61840.0,0.000819]
[1728497125954,0.70159433,61841.0,61840.0,0.000819]
[1728497126201,0.70982042,61841.0,61840.0,0.000819]
[1728497126887,0.97065806,61841.0,61840.0,0.000819]
[1728497127141,0.97065806,61841.0,61829.0,0.24236353]
[1728497127142,0.53438927,61830.0,61829.0,0.24236353]
[1728497127597,0.342352,61823.0,61822.0,0.000819]
[1728497127822,0.52940827,61823.0,61822.0,0.000819]
[1728497128060,0.53273836,61823.0,61822.0,0.000819]
[1728497128279,0.6885599,61823.0,61822.0,0.000819]
[1728497129092,0.6885599,61823.0,61813.0,0.000819]
[1728497129093,0.53113127,61814.0,61813.0,0.000819]
[1728497129785,0.53113127,61814.0,61778.0,0.000819]
[1728497129786,0.161856,61783.0,61778.0,0.000819]
[1728497130020,0.35091227,61783.0,61778.0,0.000819]
[1728497130242,0.35424236,61783.0,61778.0,0.000819]
[1728497130476,0.35224236,61783.0,61778.0,0.000819]